Cogmind - Beta 15 @@@ ROGUE MODE // 2025.06.19 @ 12:47:09 Player: Fleshy Vegetable Bird Result: Destroyed by Piercing Trap Performance ------------- Evolutions (0) 0 Regions Visited (2) 400 Robots Destroyed (20) 100 Value Destroyed (386) 386 Prototype IDs (3) 60 Alien Tech Used (0) 0 Bonus (128) 128 TOTAL SCORE: 1074 Bonus ------- Follower Combat Kills 128 Cogmind --------- Core Integrity 0/250 Matter 295/300 Energy 198/200 System Corruption 0% Temperature Cool (0) Movement Rolling (95) Ox1 Location -10/Subcaves Parts ------- > --- POWER (1) -------- Subdweller Power Source > --- PROPULSION (2) --- Wheel Wheel > --- UTILITY (2) ------ Large Storage Unit V3-11A's Pendant > --- WEAPON (2) ------- Grenade Launcher > --- INVENTORY (15) --- Subdweller Power Source Subdweller Power Source Subdweller Power Source Subdweller Monowheel Subdweller Monowheel Structural Scanner Machine Analyzer Makeshift Thermal Plating Medium Laser Salvaging Laser Subdweller Beam Cannon Subdweller Machine Gun Barrage Gun Multitool Shrapnel Trap Peak State ------------ > --- POWER ------------ Subdweller Power Source > --- PROPULSION ------- Wheel Wheel > --- UTILITY ---------- Large Storage Unit V3-11A's Pendant > --- WEAPON ----------- Salvaging Laser Grenade Launcher > --- INVENTORY -------- Subdweller Power Source Subdweller Power Source Subdweller Power Source Subdweller Monowheel Subdweller Monowheel Structural Scanner Machine Analyzer Makeshift Thermal Plating Medium Laser Subdweller Beam Cannon Subdweller Machine Gun Barrage Gun Mining Laser Multitool Shrapnel Trap [Rating: 13] Favorites ----------- Power Subdweller Power Source Engine Subdweller Power Source Propulsion Wheel Wheel Wheel Utility Large Storage Unit Device V3-11A's Pendant Storage Large Storage Unit Weapon Salvaging Laser Energy Gun Salvaging Laser Ballistic Gun Light Assault Rifle Launcher Grenade Launcher Special Weapon Mining Laser Build | -11 -10 -10 ------- Run | Yrd Mat Sub Slots Evolved . | . . . Power . | . . . Propulsion . | . . . Utility . | . . . Weapon . | . . . Parts Attached 26 | 6 2 18 Power 4 | 1 . 3 Engine 4 | 1 . 3 Core . | . . . Reactor . | . . . Propulsion 8 | 2 . 6 Treads . | . . . Leg . | . . . Wheel 8 | 2 . 6 Hover . | . . . Flight . | . . . Utility 4 | 1 2 1 Device 1 | . . 1 Storage 3 | 1 2 . Processor . | . . . Hackware . | . . . Protection . | . . . Artifact . | . . . Weapon 10 | 2 . 8 Energy Gun 5 | . . 5 Energy Cannon . | . . . Ballistic Gun 2 | 2 . . Ballistic Cannon . | . . . Launcher 2 | . . 2 Special Weapon 1 | . . 1 Impact Weapon . | . . . Slashing Weapon . | . . . Piercing Weapon . | . . . Special Melee Weapon . | . . . Unidentified Prototypes 1 | . . 1 Parts Lost 7 | . . 7 Power 1 | . . 1 Propulsion 2 | . . 2 Utility 1 | . . 1 Weapon 3 | . . 3 Highest Loss Streak 4 | . . 4 To Critical Strikes . | . . . Average Backups 13 | 3 9 14 Power 2 | . 1 3 Propulsion 2 | 1 4 2 Utility 2 | . . 2 Weapon 4 | 1 4 5 Tool/Special . | . . . Unused Backups 15 | 1 . 14 Power 3 | . . 3 Propulsion 3 | 1 . 2 Utility 3 | . . 3 Weapon 4 | . . 4 Tool/Special 2 | . . 2 Average Slot Usage (%) 97 | . 98 97 Engine 13 | . 14 13 Wheel 27 | . 28 27 Device 10 | . . 11 Storage 16 | . 26 15 Energy Gun 14 | . . 15 Ballistic Gun 2 | . 28 . Launcher 4 | . . 5 Special Weapon 5 | . . 6 Peak Build Rating 13 | 6 8 13 Average Rating 10 | 5 7 11 On Entrance 4 | . 6 8 Naked Turns . | . . . Heaviest Build 31 | 12 29 31 Greatest Support 20 | 20 20 20 Greatest Overweight (x) 2 | 1 1 2 Average Overweight (x) . | . . 1 Largest Inventory Capacity 15 | 8 15 15 Average Capacity 14 | 7 14 15 Most Carried 15 | 8 12 15 Average Carried 13 | 4 9 14 Final Capacity 15 | 8 15 15 Final Carried 15 | 8 12 15 Class Distribution -------------------- 63% | Scavenger-Mutant 36% | Mutant Dominant Class ---------------- Mutant | -10/Materials Scavenger-Mutant | -10/Subcaves Resources | -11 -10 -10 ----------- Run | Yrd Mat Sub Matter Collected 750 | 296 76 378 Remotely . | . . . Salvage Created 382 | 187 . 195 Parts 38 | 13 . 25 Haulers Intercepted . | . . . Recyclers Shooed . | . . . Parts Field Recycled . | . . . Retrieved Matter . | . . . Parts Self-Destructed 21 | . . 21 Prevented . | . . . Kills | -11 -10 -10 ------- Run | Yrd Mat Sub Combat Hostiles Destroyed 11 | . . 11 Guns 5 | . . 5 AOE 6 | . . 6 Classes Destroyed 6 | 3 . 3 Worker 2 | 2 . . Tunneler 4 | 4 . . Recycler 1 | 1 . . Turret 2 | . . 2 Swarmer 5 | . . 5 Subdweller 6 | . . 6 Best Kill Streak 6 | 5 . 6 Combat Bots Only 4 | . . 4 Max Kills in Single Turn 3 | 1 . 3 Gunslinging . | . . . Exploded 3 | . . 3 Melee . | . . . Uniques/NPCs Destroyed . | . . . Combat | -11 -10 -10 -------- Run | Yrd Mat Sub Hostile Shots Fired 84 | . 3 81 Missed 33 | . 2 31 Hits 51 | . 1 50 Projectile 51 | . 1 50 Critical Strikes 1 | . . 1 Damage Taken 839 | . 11 828 Core 266 | . 11 255 Absorbed by Shields . | . . . Core Remaining (%) 100 | 100 . . Volleys Fired 92 | 20 2 70 Largest 2 | 2 2 2 Hottest 100 | 40 40 100 Shots Fired 138 | 40 4 94 Gun 88 | 40 4 44 Cannon . | . . . Launcher 10 | . . 10 Special 40 | . . 40 Kinetic 55 | 40 4 11 Thermal 73 | . . 73 Explosive 10 | . . 10 Electromagnetic . | . . . Robot Hit Streak 10 | 10 1 9 Robot Miss Streak 3 | 2 3 3 Penetration Max . | . . . Secondary Targets . | . . . Shots Hit Robots 63 | 29 1 33 Core Hits 38 | 13 . 25 Critical Kills . | . . . Critical Parts Destroyed . | . . . Critical Strikes . | . . . Melee Attacks . | . . . Impact . | . . . Slashing . | . . . Piercing . | . . . Sneak Attacks . | . . . Combat Hostiles . | . . . Follow-up Attacks . | . . . Damage Inflicted 1100 | 221 6 873 Guns 555 | 221 6 328 Cannons . | . . . Explosions 545 | . . 545 Melee . | . . . Ramming . | . . . Kinetic 289 | 221 6 62 Thermal 266 | . . 266 Explosive 545 | . . 545 Electromagnetic . | . . . Impact . | . . . Slashing . | . . . Piercing . | . . . Highest Corruption . | . . . Average Corruption . | . . . Corruption Purged . | . . . Corruption Blocked . | . . . Overload Shots . | . . . Overflow Damage . | . . . Projectiles . | . . . Explosions . | . . . Melee . | . . . Knockbacks . | . . . Impact . | . . . Kinetic . | . . . Secondary . | . . . Self-Inflicted Damage . | . . . Shots . | . . . Rammed . | . . . Targets Rammed . | . . . Kicked . | . . . Crushed . | . . . Highest Temperature 38 | . . 38 Average Temperature 12 | . . 12 Received Heat Transfer 234 | . 6 228 Siege Activations . | . . . Martial Activations . | . . . Shielding Activations . | . . . Robots Disrupted . | . . . Combat Hostiles . | . . . Robots Corrupted . | . . . Combat Hostiles . | . . . Parts Fried . | . . . Impact Corruptions . | . . . Robots Melted . | . . . Combat Hostiles . | . . . Parts Melted 2 | . . 2 Heat Transferred 708 | . . 708 Parts Sabotaged . | . . . Parts Stolen . | . . . Parts Stripped . | . . . Power Chain Reactions . | . . . Alert | -11 -10 -10 ------- Run | Yrd Mat Sub Maximum Alert Level . | . . . Low Security (%) 100 | 100 100 . Level 1 . | . . . Level 2 . | . . . Level 3 . | . . . Level 4 . | . . . Level 5 . | . . . High Security . | . . . Max Security . | . . . Peak Influence 10 | 10 6 . Initial . | . . . Average . | 2 . . Influence Increases 301 | 35 10 256 Destroy 0b10 Robot/C 180 | . . 180 Destroy 0b10 Robot/NC 35 | 35 . . Destroy Leader 10 | . . 10 Allied During Kill 36 | . . 36 Successful Hack 10 | . 10 . Lose Combat Pursuer 30 | . . 30 Influence Decreases 301 | 35 10 256 Time Decay 264 | 35 10 219 Lost Part 37 | . . 37 Squads Dispatched . | . . . Investigation . | . . . Extermination . | . . . Reinforcement . | . . . Assault . | . . . Garrison . | . . . Intercept . | . . . Searches Triggered . | . . . Construction Impeded . | . . . Haulers Reinforced . | . . . Active Scanning Responses . | . . . Cargo Convoy Interrupts . | . . . Stealth | -11 -10 -10 --------- Run | Yrd Mat Sub Distress Signals . | . . . Communications Jammed . | . . . Distress Signals . | . . . Times Spotted 30 | . 2 28 Peak Tracking Total 6 | . 1 6 Tactical Retreats 1 | . . 1 Traps | -11 -10 -10 ------- Run | Yrd Mat Sub Traps Triggered 2 | . . 2 Indirectly . | . . . Trap Hack Attempts . | . . . Triggered . | . . . Disarmed . | . . . Reprogrammed . | . . . Reused . | . . . Traps Extracted . | . . . Installed . | . . . Triggered . | . . . Most Traps Carried 1 | . . 1 Machines | -11 -10 -10 ---------- Run | Yrd Mat Sub Machines Disabled 2 | . . 2 Max in Single Turn 1 | . . 1 Machines Repaired . | . . . Machines Dismantled . | . . . Machines Sabotaged . | . . . Overloaded Fab Kills . | . . . Hacking | -11 -10 -10 --------- Run | Yrd Mat Sub Machines Accessed 3 | . 3 . Terminals 3 | . 3 . Fabricators . | . . . Repair Stations . | . . . Recycling Units . | . . . Scanalyzers . | . . . Garrison Access . | . . . Total Hacks 7 | . 7 . Successful 5 | . 5 . Failed 2 | . 2 . Catastrophic 1 | . 1 . Database Lockouts . | . . . Manual 5 | . 5 . Terminals 7 | . 7 . Fabricators . | . . . Repair Stations . | . . . Recycling Units . | . . . Scanalyzers . | . . . Garrison Access . | . . . Terminal Hacks 4 | . 4 . Robot Analysis 2 | . 2 . Prototype ID Bank 1 | . 1 . Locate Traps 1 | . 1 . Fabricator Hacks . | . . . Repair Station Hacks . | . . . Recycling Unit Hacks . | . . . Scanalyzer . | . . . Garrison Access Hacks . | . . . Unauthorized Hacks 1 | . 1 . Terminals 1 | . 1 . Botnet 1 | . 1 . Fabricators . | . . . Repair Stations . | . . . Recycling Units . | . . . Scanalyzers . | . . . Garrison Access . | . . . Data Cores Recovered . | . . . Used . | . . . Hacking Detections 3 | . 3 . Full Trace Events . | . . . Feedback Events . | . . . Feedback Blocked . | . . . Robot Schematics Acquired . | . . . Robots Built . | . . . Authchips . | . . . Time . | . . . Total Robot Build Rating . | . . . Part Schematics Acquired . | . . . Parts Built . | . . . Authchips . | . . . Time . | . . . Total Part Build Rating . | . . . Parts Repaired . | . . . Time . | . . . Parts Recycled . | . . . Recycled Matter . | . . . Retrieved Matter . | . . . Retrieved Components . | . . . Parts Scanalyzed . | . . . Part Schematics Acquired . | . . . Parts Damaged . | . . . Bothacking | -11 -10 -10 ------------ Run | Yrd Mat Sub Used RIF Installer . | . . . Robots Hacked . | . . . Non-combat . | . . . Combat . | . . . Robot Hacks Applied . | . . . Relay Couplers Released . | . . . Fabnet Peak Effective % . | . . . Robots Rewired . | . . . Allies Hacked . | . . . Hacks Repelled . | . . . Allies | -11 -10 -10 -------- Run | Yrd Mat Sub Total Allies 11 | . . 11 Largest Group 11 | . . 11 Highest-Rated Group 211 | . . 211 Highest-Rated Ally 21 | . . 21 Total Orders . | . . . Ally Attacks 23 | . . 23 Total Damage 347 | . . 347 Kills 4 | . . 4 Allies Corrupted . | . . . Allies Melted . | . . . Intel | -11 -10 -10 ------- Run | Yrd Mat Sub Active Infowar (turns) . | . . . Robot Analysis Total 2 | . 2 . Derelict Logs Recovered 3 | . . 3 Drone Launches . | . . . Drone Recoveries . | . . . Exploration | -11 -10 -10 ------------- Run | Yrd Mat Sub Turns Passed 2818 | 127 227 2464 Spaces Moved 2406 | 71 213 2122 Core 9 | 9 . . Treads . | . . . Legs . | . . . Wheels 2397 | 62 213 2122 Hover . | . . . Flight . | . . . Fastest Speed 50 | 50 80 95 Average Speed 94 | 77 92 95 Slowest Speed 110 | 100 95 110 Overloaded Moves . | . . . Propulsion Burnouts . | . . . Robots Hopped . | . . . Potential Cave-ins . | . . . Cave-ins Triggered . | . . . Exploration Rate (%) 44 | 5 44 85 Regions Visited 2 Branch Regions 1 Pre-discovered Areas 2 | . . 2 Known Exits Taken . | . . . Unknown Exits Taken 2 | 1 1 . Scrap Searched 5 | . . 5 Spaces Dug 3 | . . 3 Terrain Destroyed 39 | . . 39 Melee . | . . . Projectile . | . . . AOE 39 | . . 39 Terrain Rammed . | . . . Walls Destroyed . | . . . Machines Disabled . | . . . Actions | -11 -10 -10 --------- Run | Yrd Mat Sub Total 2742 | 108 240 2394 Wait 158 | . 18 140 Move 2404 | 70 212 2122 Hop . | . . . Pick Up 35 | 10 5 20 Fast Attach 8 | 6 . 2 Attach 7 | . 1 6 Detach . | . . . Swap 20 | . 1 19 Drop 18 | 2 1 15 Fire 92 | 20 2 70 Melee . | . . . Ram . | . . . Kick . | . . . Crush . | . . . Escape Stasis . | . . . Rewire . | . . . Trap . | . . . Miscellaneous . | . . . Route ------- -11/Scrapyard -10/Materials (discovered 3 exits: [*Mat] / [*Min] / [*Sub]) -10/Subcaves (discovered 3 exits: [*Mat] / [*Rec] / [*Scr]) History --------- Turn | Location | Event 24 | -11/Scrapyard | Discovered new exit (range 14) 128 | -11/Scrapyard | Entered Materials 129 | -10/Materials | Met a group of wandering Federalists 181 | -10/Materials | Discovered new exit (range 14) 302 | -10/Materials | Discovered new exit (range 12) 314 | -10/Materials | Build established: Mutant 321 | -10/Materials | Discovered new exit (range 9) 355 | -10/Materials | Entered Subcaves 355 | -10/Subcaves | Accompanied by 1 ally 355 | -10/Subcaves | Discovered new exit (range 15) 356 | -10/Subcaves | Continued accompanying wandering Federalists (4) 356 | -10/Subcaves | Approached by a straggling Scientist 396 | -10/Subcaves | Lost 4 allies 592 | -10/Subcaves | Core integrity fell below 50% 632 | -10/Subcaves | Lost 4 parts (1n1u2w) 646 | -10/Subcaves | Learned 4 Materials zone layouts 821 | -10/Subcaves | Visited triangular shrine 826 | -10/Subcaves | Found Prototype Device 826 | -10/Subcaves | Identified V3-11A's Pendant 833 | -10/Subcaves | Befriended Subdweller 883 | -10/Subcaves | Befriended Subdweller 1063 | -10/Subcaves | A swath of the cavern ceiling suddenly collapsed 1318 | -10/Subcaves | Shifting Twisted Machinery released Mak. Thermal Plating 1319 | -10/Subcaves | Shifting Twisted Machinery released Spk. Treads 1343 | -10/Subcaves | Befriended Subdweller 1343 | -10/Subcaves | Befriended Subdweller 1352 | -10/Subcaves | Build established: Scavenger-Mutant 1393 | -10/Subcaves | Befriended Subdweller 1393 | -10/Subcaves | Befriended Subdweller 1439 | -10/Subcaves | Learned Materials garrison access intel 1786 | -10/Subcaves | Shifting Twisted Machinery released Shrapnel Trap 1874 | -10/Subcaves | Shifting Twisted Machinery released Battle Cannon 1911 | -10/Subcaves | Learned location of Zion (-7) 1911 | -10/Subcaves | Met a Zionite searching for "candidates" 1939 | -10/Subcaves | Learned location of Storage (-7) 1966 | -10/Subcaves | A Subdweller sparked back to life 1966 | -10/Subcaves | A Subdweller sparked back to life 1966 | -10/Subcaves | A Subdweller sparked back to life 1968 | -10/Subcaves | Befriended Subdweller 1968 | -10/Subcaves | Befriended Subdweller 1968 | -10/Subcaves | Befriended Subdweller 2049 | -10/Subcaves | Discovered new exit (range 15) 2251 | -10/Subcaves | Disturbed a concealed Subdweller 2327 | -10/Subcaves | Core integrity fell below 20% 2531 | -10/Subcaves | A swath of the cavern ceiling suddenly collapsed 2581 | -10/Subcaves | Disturbed a concealed Subdweller 2583 | -10/Subcaves | Befriended Subdweller 2808 | -10/Subcaves | Befriended Subdweller 2819 | -10/Subcaves | Destroyed by Piercing Trap Last Messages --------------- 02531_ QQ-SQV(R) crushed by falling debris. A swath of the cavern ceiling suddenly collapses. 02579_ Searching scrap... 02579_ Found Multitool. 02579_ Found Sub. Beam Cannon. 02579_ Found 63 Matter. 02580_ Searching scrap... 02580_ Found Sub. Monowheel. 02580_ Found 38 Matter. 02581_ TZ-PKN(R) angrily emerges from the Twisted Machinery. 02583_ TZ-PKN(R): "SUBSUB?" 02804_ 2F-7HQ(R) destroyed. 02808_ 67-I1N(R): "GEARHEAD!" 02819_ Triggered Piercing Trap. 02819_ Spikes shoot up from the floor. 02819_ Critical hit (Impale). 02819_ Mining Laser destroyed. 02819_ Critical hit (Impale). Map ----- +----------------------------------------------------+ | | | | | | | | | | | | | | | | | | | | | | | | | | | | | ?????????????????????????????????????????????????? | | ?????????????????????????????????????????????????? | | ?????????????????????????????????????????????????? | | ??????????????????????#?""???????????????????????? | | ??????????????????????#<<